fUSD/lending_fUSD_20240905
["ID","MTS","AMOUNT","RATE_DAILY","PERIOD"]
[337242346,1725533902999,416.01,0.00012046,2]
[337242349,1725534207426,500.0,0.000269,120]
[337242350,1725534251522,193.84,0.00010959,2]
[337242351,1725534390694,-300.0,0.00012999,2]
[337242352,1725534390716,-2400.0,0.00013,2]
[337242353,1725534397558,-7604.19338565,0.00013,2]
[337242354,1725534406523,395.2,0.00011891,2]
[337242356,1725534479830,-444.1929,0.00013627,2]
[337242357,1725534479851,-217.21,0.00013721,2]
[337242358,1725534479872,-4155.53402046,0.00013757,2]
[337242359,1725534479892,-208.19045059,0.000138,2]
[337242360,1725534523373,-250.0,0.00013806,2]
[337242361,1725534523394,-250.0,0.00013846,2]
[337242362,1725534523414,-800.0,0.00013857,2]
[337242363,1725534523434,-299.53,0.00013857,2]
[337242364,1725534523455,-300.0,0.00013886,2]
[337242365,1725534523475,-3606.0992433,0.00013887,2]
[337242369,1725534632321,-1891.59002609,0.00013887,2]
[337242370,1725534632571,-778.63384695,0.00013887,2]
[337242409,1725534638325,-316.97206684,0.00013887,2]
[337242411,1725534638388,-582.75405,0.00013887,2]
[337242412,1725534638401,-262.14000012,0.00013887,2]
[337242413,1725534638429,-1815.69636537,0.00013887,2]
[337242414,1725534638485,-3163.29177813,0.00013887,2]
[337242415,1725534638496,-748.57520928,0.00013887,2]
[337242416,1725534638550,-1362.14790047,0.00013887,2]
[337242417,1725534638564,-9372.09951345,0.00013887,2]
[337242418,1725534638573,-150.0,0.00013999,2]
[337242419,1725534638582,-500.0,0.00014,2]
[337242420,1725534638591,-500.0,0.00014,2]
[337242421,1725534638600,-500.0,0.00014,2]
[337242422,1725534638610,-500.0,0.00014,2]
[337242423,1725534638620,-500.0,0.00014,2]
[337242424,1725534638630,-504.89,0.00014,2]
[337242425,1725534638643,-500.0,0.00014,2]
[337242426,1725534638652,-642.25,0.00014,2]
[337242427,1725534638662,-500.0,0.00014,2]
[337242428,1725534638672,-500.0,0.00014,2]
[337242429,1725534638682,-500.0,0.00014,2]
[337242430,1725534638691,-500.0,0.00014,2]
[337242431,1725534638701,-500.0,0.00014,2]
[337242432,1725534638711,-500.0,0.00014,2]
[337242433,1725534638720,-500.0,0.00014,2]
[337242434,1725534638730,-578.42,0.00014,2]
[337242435,1725534638740,-360.0,0.00014052,2]
[337242436,1725534638749,-299.53,0.00014079,2]
[337242437,1725534638759,-395.2,0.00014155,2]
[337242438,1725534638768,-499.99,0.00014155,2]
[337242439,1725534638777,-10000.0,0.00014249,2]
[337242440,1725534638787,-354.61918759,0.00014534,2]
[337242441,1725534638796,-189.06,0.00014612,2]
[337242442,1725534638806,-150.99,0.0001476,2]
[337242443,1725534638817,-216.352768,0.00014795,2]
[337242444,1725534638826,-532.2,0.000148,2]
[337242445,1725534638836,-2639.77642,0.0001485,2]
[337242446,1725534638846,-252.795,0.000149,2]
[337242447,1725534638856,-646.564,0.000149,2]
[337242448,1725534638865,-2326.05,0.000149,2]
[337242449,1725534638875,-500.0,0.00014973,2]
[337242450,1725534638884,-500.0,0.00014973,2]
[337242451,1725534638893,-24597.19794807,0.0001499,3]
[337242452,1725534638905,-535.21604134,0.0001499,3]
[337242453,1725534638917,-2752.90091801,0.0001499,3]
[337242454,1725534638928,-1599.21665465,0.0001499,3]
[337242455,1725534638939,-445.42957939,0.0001499,3]
[337242456,1725534638950,-1439.35583078,0.0001499,3]
[337242457,1725534638973,-961.26498447,0.0001499,3]
[337242458,1725534638984,-375.97713345,0.0001499,3]
[337242459,1725534638995,-1028.52477935,0.0001499,3]
[337242461,1725534639007,-666.77284336,0.0001499,3]
[337242463,1725534639018,-6554.30971465,0.0001499,3]
[337242465,1725534639030,-1751.89351682,0.0001499,3]
[337242467,1725534639041,-1271.4761981,0.0001499,3]
[337242469,1725534639053,-1373.21390374,0.0001499,3]
[337242471,1725534639066,-451.03378972,0.0001499,3]
[337242473,1725534639075,-151.0,0.00014998,2]
[337242475,1725534639084,-717.00078551,0.00014999,2]
[337242502,1725534640362,-557.38108761,0.00014249,2]
[337242503,1725534640373,-353.59275053,0.00014249,2]
[337242504,1725534640609,-4409.69574016,0.00014249,2]
[337242505,1725534640824,-4679.3304217,0.00014249,2]
[337242506,1725534640834,-282.99921449,0.00014999,2]
[337242508,1725534640843,-1000.0,0.00015,2]
[337242509,1725534640852,-1000.0,0.00015,2]
[337242510,1725534640861,-1000.0,0.00015,2]
[337242511,1725534640871,-474.86337144,0.00015,2]
[337242512,1725534640896,-525.13662856,0.00015,2]
[337242513,1725534640906,-1000.0,0.00015,2]
[337242514,1725534640915,-4.30027666,0.00015,2]
[337242515,1725534640926,-995.69972334,0.00015,2]
[337242516,1725534640936,-1000.0,0.00015,2]
[337242517,1725534640945,-1000.0,0.00015,2]
[337242518,1725534640954,-1000.0,0.00015,2]
[337242519,1725534640963,-1000.0,0.00015,2]
[337242520,1725534640972,-1000.0,0.00015,2]
[337242521,1725534640982,-1000.0,0.00015,2]
[337242522,1725534640991,-1000.0,0.00015,2]
[337242523,1725534641000,-1000.0,0.00015,2]
[337242524,1725534641010,-1000.0,0.00015,2]
[337242525,1725534641022,-1000.0,0.00015,2]
[337242526,1725534641031,-1000.0,0.00015,2]
[337242527,1725534641040,-1000.0,0.00015,2]
[337242528,1725534641049,-1137.0,0.00015,2]
[337242529,1725534641059,-521.0,0.00015,2]
[337242530,1725534641072,-222659.28220815,0.00015,2]
[337242531,1725534641081,-4109265.03542453,0.00015,2]
[337242532,1725534641108,-354.74994731,0.00015,2]
[337242533,1725534641119,-670.37,0.00015,2]
[337242534,1725534643573,-441.344958,0.00015,2]
[337242535,1725534643584,-1163.2,0.00015,2]
[337242536,1725534643595,-9956.95801704,0.00015,2]
[337242537,1725534643606,-7121.70094831,0.00015,2]
[337242538,1725534643618,-5696.75894689,0.00015,2]
[337242553,1725534646425,-754.85459043,0.00014249,2]
[337242554,1725534646440,-976.68848343,0.00014249,2]
[337242555,1725534646451,-2286.99994938,0.00014249,2]
[337242556,1725534646518,-474.421,0.00014249,2]
[337242557,1725534646531,-1131.43552971,0.00014249,2]
[337242558,1725534646579,-912.85999773,0.00014249,2]
[337242559,1725534646591,-1358.33273909,0.00014249,2]
[337242572,1725534761216,-3415.94,0.00018849,30]
[337242573,1725534761255,-1338.10042145,0.0002,30]
[337242574,1725534761288,-1501.77177509,0.0002,30]
[337242575,1725534761324,-2628.15390219,0.00020919,40]
[337242576,1725534761368,-1200.0,0.00022,30]
[337242577,1725534761401,-3415.94,0.00022011,30]
[337242578,1725534761455,-561.79,0.00024657,30]
[337242579,1725534761486,-561.79,0.00024657,30]
[337242580,1725534761518,-561.79,0.00024657,30]
[337242581,1725534761552,-561.79,0.00024657,30]
[337242582,1725534761585,-561.79,0.00024657,30]
[337242583,1725534761620,-561.79,0.00024657,30]
[337242584,1725534761652,-561.79,0.00024657,30]
[337242585,1725534761685,-561.79,0.00024657,30]
[337242586,1725534761718,-561.79,0.00024657,30]
[337242587,1725534761953,-561.79,0.00024657,30]
[337242588,1725534761986,-561.79,0.00024657,30]
[337242589,1725534762018,-561.79,0.00024657,30]
[337242590,1725534762051,-561.79,0.00024657,30]
[337242591,1725534762084,-561.79,0.00024657,30]
[337242592,1725534762116,-561.79,0.00024657,30]
[337242593,1725534762148,-561.79,0.00024657,30]
[337242594,1725534762180,-561.79,0.00024657,30]
[337242595,1725534762211,-561.79,0.00024657,30]
[337242596,1725534762243,-561.79,0.00024657,30]
[337242597,1725534762275,-561.79,0.00024657,30]
[337242598,1725534762307,-561.79,0.00024657,30]
[337242599,1725534762338,-561.79,0.00024657,30]
[337242600,1725534762369,-561.79,0.00024657,30]
[337242601,1725534762401,-561.98860304,0.00024657,30]
[337242602,1725534762439,-2100.0,0.00025,30]
[337242603,1725534762472,-427.82268066,0.00025,30]
[337242604,1725534762503,-2829.47238998,0.00025,30]
[337242605,1725534762535,-419.6335458,0.00025096,30]
[337242606,1725534762567,-3415.94,0.00025172,30]
[337242607,1725534762598,-419.6335458,0.00025205,30]
[337242608,1725534762628,-419.6335458,0.00025315,30]
[337242609,1725534762659,-419.6335458,0.00025425,30]
[337242610,1725534762689,-419.6335458,0.00025534,30]
[337242611,1725534762720,-419.6335458,0.00025616,30]
[337242612,1725534762753,-419.6335458,0.00025726,30]
[337242613,1725534762784,-419.6335458,0.00025836,30]
[337242614,1725534762815,-419.6335458,0.00025945,30]
[337242615,1725534762846,-718.92306624,0.00026,30]
[337242616,1725534762877,-1200.0,0.00026,60]
[337242617,1725534762909,-419.6335458,0.00026055,30]
[337242618,1725534762943,-419.6335458,0.00026164,30]
[337242619,1725534762973,-419.6335458,0.00026274,30]
[337242620,1725534763005,-419.6335458,0.00026356,30]
[337242621,1725534763039,-419.6335458,0.00026466,30]
[337242622,1725534763074,-419.6335458,0.00026575,30]
[337242623,1725534763107,-600.0,0.00026849,30]
[337242624,1725534763139,-600.0,0.00026849,30]
[337242625,1725534763171,-600.0,0.00026849,30]
[337242626,1725534763206,-600.0,0.00026849,30]
[337242627,1725534763238,-600.0,0.00026849,30]
[337242628,1725534763271,-600.0,0.00026849,30]
[337242629,1725534763303,-600.0,0.00026849,30]
[337242630,1725534763334,-600.0,0.00026849,30]
[337242631,1725534763365,-600.0,0.00026849,30]
[337242632,1725534763398,-600.0,0.00026849,30]
[337242633,1725534763430,-600.0,0.00026849,30]
[337242634,1725534763462,-600.0,0.00026849,30]
[337242635,1725534763494,-600.0,0.00026849,30]
[337242636,1725534763526,-600.0,0.00026849,30]
[337242637,1725534763558,-600.0,0.00026849,30]
[337242638,1725534763591,-600.0,0.00026849,30]
[337242639,1725534763623,-400.0,0.00026849,30]
[337242640,1725534763660,-200.0,0.00027,30]
[337242641,1725534763694,-1400.04947699,0.00027,30]
[337242642,1725534763727,-3100.0,0.00027,30]
[337242643,1725534763780,-181.0,0.00027015,120]
[337242644,1725534763812,-1570.66064977,0.0002736,120]
[337242645,1725534763843,-2000.0,0.00027397,30]
[337242646,1725534763874,-2000.0,0.00027397,30]
[337242647,1725534763905,-2000.0,0.00027397,30]
[337242648,1725534763938,-2000.0,0.00027397,30]
[337242649,1725534763969,-2000.0,0.00027397,30]
[337242650,1725534764000,-2000.0,0.00027397,30]
[337242651,1725534764033,-2000.0,0.00027397,30]
[337242652,1725534764068,-2000.0,0.00027397,30]
[337242653,1725534764102,-2000.0,0.00027397,30]
[337242654,1725534764133,-2000.0,0.00027397,30]
[337242655,1725534764165,-2000.0,0.00027397,30]
[337242656,1725534764199,-2000.0,0.00027397,30]
[337242657,1725534764231,-2000.0,0.00027397,30]
[337242658,1725534764266,-2000.0,0.00027397,30]
[337242659,1725534764300,-2000.0,0.00027397,30]
[337242660,1725534764332,-2000.0,0.00027397,30]
[337242661,1725534764364,-2000.0,0.00027397,30]
[337242662,1725534764396,-2000.0,0.00027397,30]
[337242663,1725534764432,-2000.0,0.00027397,30]
[337242664,1725534764462,-997.85570607,0.00027397,30]
[337242665,1725534764495,-200.0,0.00027397,60]
[337242666,1725534764531,-1344.81814071,0.00028297,120]
[337242667,1725534764567,-3415.94,0.00028333,30]
[337242668,1725534764605,-3600.0,0.00029,30]
[337242669,1725534764638,-150.0,0.00029664,120]
[337242670,1725534764672,-500.0,0.00029667,120]
[337242671,1725534764708,-150.0,0.00029675,120]
[337242672,1725534764742,-1160.49192825,0.00029999,30]
[337242673,1725534764779,-50000.0,0.0003,30]
[337242674,1725534764818,-500.27404654,0.0003,120]
[337242675,1725534764852,-151.0,0.0003,120]
[337242676,1725534764886,-151.0,0.0003,120]
[337242677,1725534764920,-284.11495573,0.0003,30]
[337242678,1725534764956,-3600.0,0.0003,31]
[337242679,1725534764991,-300.0,0.0003,120]
[337242680,1725534765026,-2000.0,0.0003,120]
[337242681,1725534765060,-200.0,0.0003,120]
[337242682,1725534765095,-150.0,0.00030003,120]
[337242683,1725534765130,-150.0,0.00030082,120]
[337242684,1725534765167,-200.0,0.00030137,60]
[337242685,1725534765203,-150.0,0.00030179,120]
[337242686,1725534765241,-150.0,0.00030328,120]
[337242687,1725534765277,-3000.0,0.000304,30]
[337242688,1725534765312,-406.551,0.00030437,30]
[337242689,1725534765344,-150.0,0.00030487,120]
[337242690,1725534765377,-150.0,0.00030568,120]
[337242691,1725534765412,-548.0,0.00030613,30]
[337242692,1725534765451,-150.0,0.00030699,120]
[337242693,1725534765484,-250.0,0.000308,30]
[337242694,1725534765522,-1183.56,0.000308,31]
[337242695,1725534765558,-1183.56,0.000308,31]
[337242696,1725534765595,-1183.56,0.000308,31]
[337242697,1725534765629,-1183.56,0.000308,31]
[337242698,1725534765666,-1183.56,0.000308,31]
[337242699,1725534765705,-1183.56,0.000308,31]
[337242700,1725534765740,-1183.56,0.000308,31]
[337242701,1725534765779,-1183.56,0.000308,31]
[337242702,1725534765815,-1183.56,0.000308,31]
[337242703,1725534765850,-1183.56,0.000308,31]
[337242704,1725534765885,-1183.56,0.000308,31]
[337242705,1725534765922,-1183.56,0.000308,31]
[337242706,1725534765958,-1183.56,0.000308,31]
[337242707,1725534765991,-1183.56,0.000308,31]
[337242708,1725534766024,-1183.56,0.000308,31]
[337242709,1725534766061,-1183.56,0.000308,31]
[337242710,1725534766096,-151.0,0.00030959,120]
[337242711,1725534766132,-50000.0,0.00031,31]
[337242712,1725534766163,-1800.0,0.00031,32]
[337242713,1725534766224,-150.0,0.00031242,120]
[337242714,1725534766258,-1183.56,0.000314,31]
[337242715,1725534766292,-1183.56,0.000314,31]
[337242716,1725534766326,-1183.56,0.000314,31]
[337242717,1725534766359,-1183.56,0.000314,31]
[337242718,1725534766393,-1183.56,0.000314,31]
[337242719,1725534766428,-1183.56,0.000314,31]
[337242720,1725534766462,-1183.56,0.000314,31]
[337242721,1725534766497,-1183.56,0.000314,31]
[337242722,1725534766530,-1183.56,0.000314,31]
[337242723,1725534766563,-1183.56,0.000314,31]
[337242724,1725534766597,-1183.56,0.000314,31]
[337242725,1725534766630,-1183.56,0.000314,31]
[337242726,1725534766665,-1183.56,0.000314,31]
[337242727,1725534766700,-1183.56,0.000314,31]
[337242728,1725534766735,-1183.56,0.000314,31]
[337242729,1725534766772,-1183.56,0.000314,31]
[337242730,1725534766808,-1183.56,0.000314,31]
[337242731,1725534766843,-1183.56,0.000314,31]
[337242732,1725534766877,-1183.56,0.000314,31]
[337242733,1725534766912,-1183.56,0.000314,31]
[337242734,1725534766949,-1183.56,0.000314,31]
[337242735,1725534766983,-1183.56,0.000314,31]
[337242736,1725534767019,-1183.56,0.000314,31]
[337242737,1725534767058,-1183.56,0.000314,31]
[337242738,1725534767091,-150.0,0.00031476,120]
[337242739,1725534767127,-3415.94,0.00031494,120]
[337242740,1725534767162,-150.0,0.000315,120]
[337242741,1725534767196,-41598.13763577,0.000315,30]
[337242742,1725534767229,-150.0,0.00031527,120]
[337242743,1725534767568,-150.0,0.0003169,120]
[337242744,1725534767608,-150.0,0.00031825,120]
[337242745,1725534767638,-151.0,0.00031918,120]
[337242746,1725534767669,-150.0,0.00031929,120]
[337242747,1725534767704,-50000.0,0.00032,32]
[337242748,1725534767734,-3186.32881438,0.00032,33]
[337242749,1725534767765,-2000.0,0.00032,120]
[337242750,1725534767795,-150.0,0.0003209,120]
[337242751,1725534767828,-1183.56,0.000321,31]
[337242752,1725534767860,-1183.56,0.000321,31]
[337242753,1725534767894,-1183.56,0.000321,31]
[337242754,1725534767928,-1183.56,0.000321,31]
[337242755,1725534767961,-1183.56,0.000321,31]
[337242756,1725534767994,-1183.56,0.000321,31]
[337242757,1725534768027,-1183.56,0.000321,31]
[337242758,1725534768061,-1183.56,0.000321,31]
[337242759,1725534768095,-1183.56,0.000321,31]
[337242760,1725534768129,-1183.56,0.000321,31]
[337242761,1725534768165,-1183.56,0.000321,31]
[337242762,1725534768200,-1183.56,0.000321,31]
[337242763,1725534768232,-1183.56,0.000321,31]
[337242764,1725534768263,-1183.56,0.000321,31]
[337242765,1725534768296,-1183.56,0.000321,31]
[337242766,1725534768328,-1183.56,0.000321,31]
[337242767,1725534768360,-1183.56,0.000321,31]
[337242768,1725534768393,-1183.56,0.000321,31]
[337242769,1725534768428,-1183.56,0.000321,31]
[337242770,1725534768462,-1183.56,0.000321,31]
[337242771,1725534768494,-1183.56,0.000321,31]
[337242772,1725534768525,-1183.56,0.000321,31]
[337242773,1725534768557,-1183.56,0.000321,31]
[337242774,1725534768587,-1183.56,0.000321,31]
[337242775,1725534768618,-150.0,0.00032389,120]
[337242776,1725534768650,-150.0,0.00032555,120]
[337242777,1725534768680,-150.0,0.00032584,120]
[337242778,1725534768709,-150.0,0.00032607,120]
[337242779,1725534768739,-2510.0,0.000327,35]
[337242780,1725534768769,-150.0,0.0003277,120]
[337242781,1725534768802,-1183.56,0.000328,31]
[337242782,1725534768834,-1183.56,0.000328,31]
[337242783,1725534768866,-1183.56,0.000328,31]
[337242784,1725534768898,-1183.56,0.000328,31]
[337242785,1725534768932,-1183.56,0.000328,31]
[337242786,1725534768964,-1183.56,0.000328,31]
[337242787,1725534768997,-1183.56,0.000328,31]
[337242788,1725534769030,-1183.56,0.000328,31]
[337242789,1725534769064,-1183.56,0.000328,31]
[337242790,1725534769098,-1183.56,0.000328,31]
[337242791,1725534769132,-1183.56,0.000328,31]
[337242792,1725534769165,-1183.56,0.000328,31]
[337242793,1725534769197,-1183.56,0.000328,31]
[337242794,1725534769229,-1183.56,0.000328,31]
[337242795,1725534769261,-1183.56,0.000328,31]
[337242796,1725534769293,-1183.56,0.000328,31]
[337242797,1725534769324,-1183.56,0.000328,31]
[337242798,1725534769356,-1183.56,0.000328,31]
[337242799,1725534769387,-1183.56,0.000328,31]
[337242800,1725534769419,-1183.56,0.000328,31]
[337242801,1725534769454,-1183.56,0.000328,31]
[337242802,1725534769486,-1183.56,0.000328,31]
[337242803,1725534769518,-1183.56,0.000328,31]
[337242804,1725534769550,-1183.56,0.000328,31]
[337242805,1725534769580,-500.0,0.00032876,120]
[337242806,1725534769609,-500.0,0.00032876,120]
[337242807,1725534769641,-500.0,0.00032876,120]
[337242808,1725534769670,-500.0,0.00032876,120]
[337242809,1725534769701,-500.0,0.00032876,120]
[337242810,1725534769731,-500.0,0.00032876,120]
[337242811,1725534769760,-500.0,0.00032876,120]
[337242812,1725534769790,-280.53380746,0.00032876,120]
[337242813,1725534769819,-200.0,0.00032877,60]
[337242814,1725534769849,-151.0,0.00032877,120]
[337242815,1725534769878,-1059.71,0.00032877,30]
[337242816,1725534769913,-50000.0,0.00033,33]
[337242817,1725534769944,-1800.0,0.00033,34]
[337242818,1725534769976,-442.8442194,0.00033,60]
[337242819,1725534770006,-161.07959915,0.00033,120]
[337242820,1725534770038,-150.0,0.00033134,120]
[337242821,1725534770069,-5216.63,0.00033151,120]
[337242822,1725534770099,-150.0,0.0003322,120]
[337242823,1725534770132,-150.0,0.00033317,120]
[337242824,1725534770162,-150.0,0.00033372,120]
[337242825,1725534770193,-150.0,0.00033437,120]
[337242826,1725534770226,-1183.56,0.000335,31]
[337242827,1725534770259,-1183.56,0.000335,31]
[337242828,1725534770293,-1183.56,0.000335,31]
[337242829,1725534770325,-1183.56,0.000335,31]
[337242830,1725534770357,-1183.56,0.000335,31]
[337242831,1725534770389,-1183.56,0.000335,31]
[337242832,1725534770428,-1183.56,0.000335,31]
[337242833,1725534770463,-1183.56,0.000335,31]
[337242834,1725534770498,-1183.56,0.000335,31]
[337242835,1725534770530,-1183.56,0.000335,31]
[337242836,1725534770565,-1183.56,0.000335,31]
[337242837,1725534770597,-1183.56,0.000335,31]
[337242838,1725534770628,-150.0,0.00033634,120]
[337242839,1725534770659,-150.0,0.00033642,120]
[337242840,1725534770816,-768.0,0.00033674,30]
[337242841,1725534770850,-151.0,0.00033836,120]
[337242842,1725534770881,-150.0,0.00033967,120]
[337242843,1725534770916,-50000.0,0.00034,34]
[337242844,1725534770948,-807.4488767,0.00034,120]
[337242845,1725534770979,-1801.78586087,0.00034,120]
[337242846,1725534771012,-2044.3677386,0.00034,30]
[337242847,1725534771042,-2605.27084504,0.00034,120]
[337242848,1725534771075,-2000.0,0.00034,120]
[337242849,1725534771107,-150.0,0.00034289,120]
[337242850,1725534771138,-150.0,0.00034305,120]
[337242851,1725534771169,-150.0,0.00034406,120]
[337242852,1725534771201,-150.0,0.00034493,120]
[337242853,1725534771231,-3415.94,0.00034655,120]
[337242854,1725534771264,-150.0,0.0003467,120]
[337242855,1725534771298,-150.0,0.00034674,120]
[337242856,1725534771333,-150.0,0.00034692,120]
[337242857,1725534771366,-151.0,0.00034795,120]
[337242858,1725534771397,-150.0,0.00034921,120]
[337242859,1725534771432,-50000.0,0.00035,35]
[337242860,1725534771466,-50000.0,0.00035,35]
[337242861,1725534771498,-3600.0,0.00035,36]
[337242862,1725534771533,-200.0,0.00035,120]
[337242863,1725534771564,-1700.51137414,0.00035,120]
[337242864,1725534771596,-1559.27874081,0.00035,60]
[337242865,1725534771628,-2573.29538541,0.00035,30]
[337242866,1725534771658,-150.0,0.00035,30]
[337242867,1725534771688,-155.724846,0.00035,30]
[337242868,1725534771717,-150.0,0.00035377,120]
[337242869,1725534771747,-200.0,0.00035616,60]
[337242870,1725534771778,-150.0,0.00035735,120]
[337242871,1725534771808,-151.0,0.00035753,120]
[337242872,1725534771841,-50000.0,0.00036,36]
[337242873,1725534771875,-151.0,0.00036,120]
[337242874,1725534771905,-2000.0,0.00036,120]
[337242875,1725534771934,-2762.1,0.00036114,54]
[337242876,1725534771964,-150.0,0.00036165,120]
[337242877,1725534771994,-181.090517,0.00036348,119]
[337242878,1725534772024,-199.090517,0.00036398,120]
[337242879,1725534772053,-150.0,0.00036411,120]
[337242880,1725534772086,-181.090517,0.00036448,119]
[337242881,1725534772117,-199.090517,0.00036498,120]
[337242882,1725534772147,-181.090517,0.00036548,119]
[337242883,1725534772177,-150.0,0.00036587,120]
[337242884,1725534772207,-199.090517,0.00036598,120]
[337242885,1725534772239,-181.090517,0.00036648,119]
[337242886,1725534772270,-199.090517,0.00036698,120]
[337242887,1725534772301,-151.0,0.00036712,120]
[337242888,1725534772331,-181.090517,0.00036748,119]
[337242889,1725534772363,-150.0,0.00036763,120]
[337242890,1725534772393,-199.090517,0.00036798,120]
[337242891,1725534772424,-150.0,0.00036844,120]
[337242892,1725534772471,-181.090517,0.00036848,119]
[337242893,1725534772502,-199.090517,0.00036898,120]
[337242894,1725534772533,-181.090517,0.00036948,119]
[337242895,1725534772563,-199.090517,0.00036998,120]
[337242896,1725534772596,-50000.0,0.00037,37]
[337242897,1725534772627,-1095.4016,0.00037,120]
[337242898,1725534772659,-150.0,0.00037016,120]
[337242899,1725534772690,-1075.0,0.00037042,30]
[337242900,1725534772720,-181.090517,0.00037048,119]
[337242901,1725534772750,-150.090517,0.00037098,119]
[337242902,1725534772780,-181.090517,0.00037148,119]
[337242903,1725534772809,-199.090517,0.00037198,120]
[337242904,1725534772841,-181.090517,0.00037248,119]
[337242905,1725534772873,-199.090517,0.00037298,120]
[337242906,1725534772903,-150.0,0.00037319,120]
[337242907,1725534772933,-181.090517,0.00037348,119]
[337242908,1725534772963,-199.090517,0.00037398,120]
[337242909,1725534772994,-181.090517,0.00037448,119]
[337242910,1725534773027,-1615.34579702,0.00037498,120]
[337242911,1725534773059,-181.090517,0.00037548,119]
[337242912,1725534773118,-199.090517,0.00037598,120]
[337242913,1725534773149,-150.0,0.000376,120]
[337242914,1725534773180,-181.090517,0.00037648,119]
[337242915,1725534773210,-151.0,0.00037671,120]
[337242916,1725534773241,-150.0,0.00037695,120]
[337242917,1725534773272,-199.090517,0.00037698,120]
[337242918,1725534773304,-181.090517,0.00037748,119]
[337242919,1725534773334,-199.090517,0.00037798,120]
[337242920,1725534773366,-3415.94,0.00037817,120]
[337242921,1725534773397,-181.090517,0.00037848,119]
[337242922,1725534773429,-150.0,0.00037881,120]
[337242923,1725534773462,-199.090517,0.00037898,120]
[337242924,1725534773493,-181.090517,0.00037948,119]
[337242925,1725534773526,-150.0,0.00037973,120]
[337242926,1725534773557,-199.090517,0.00037998,120]
[337242927,1725534773588,-150.0,0.00037999,120]
[337242928,1725534773618,-344.06531419,0.00037999,120]
[337242929,1725534773651,-50000.0,0.00038,38]
[337242930,1725534773682,-807.4488767,0.00038,120]
[337242931,1725534773713,-853.358075,0.00038,120]
[337242932,1725534773744,-1111.44622079,0.00038,120]
[337242933,1725534773774,-232.81548155,0.00038,30]
[337242934,1725534773805,-243.79360271,0.00038,30]
[337242935,1725534773836,-459.22357148,0.00038,120]
[337242936,1725534773868,-1000.0,0.00038,120]
[337242937,1725534773899,-2000.0,0.00038,120]
[337242938,1725534773930,-181.090517,0.00038048,119]
[337242939,1725534773961,-199.090517,0.00038098,120]
[337242940,1725534773991,-150.0,0.00038148,120]
[337242941,1725534774022,-181.090517,0.00038148,119]
[337242942,1725534774053,-199.090517,0.00038198,120]
[337242943,1725534774087,-181.090517,0.00038248,119]
[337242944,1725534774118,-199.090517,0.00038298,120]
[337242945,1725534774149,-181.090517,0.00038348,119]
[337242946,1725534774182,-252.1794272,0.00038356,60]
[337242947,1725534774214,-150.0,0.00038427,120]
[337242948,1725534774244,-181.090517,0.00038448,119]
[337242949,1725534774274,-150.0,0.00038459,120]
[337242950,1725534774304,-199.090517,0.00038498,120]
[337242951,1725534774334,-150.0,0.00038544,120]